fUST/lending_fUST_20251115
["ID","MTS","AMOUNT","RATE_DAILY","PERIOD"]
[393978050,1763154062886,-3893.7,0.000311,2]
[393978051,1763154062923,-30000.0,0.0003112,2]
[393978052,1763154062958,-266.601798,0.0003112,31]
[393978053,1763154062992,-151.0,0.0003112,31]
[393978054,1763154063035,-269.244321,0.0003112,30]
[393978055,1763154063074,-500.0,0.00031173,5]
[393978056,1763154063108,-441.0,0.00031233,2]
[393978057,1763154063141,-391.94247056,0.00031233,2]
[393978058,1763154063179,-5000.0,0.00031264,2]
[393978059,1763154063219,-1107.0,0.00031339,2]
[393978060,1763154063254,-441.0,0.0003137,2]
[393978061,1763154063287,-441.0,0.00031507,2]
[393978062,1763154063321,-660.0,0.00031523,2]
[393978063,1763154063356,-413.0,0.00031552,2]
[393978064,1763154063397,-413.0,0.00031552,2]
[393978065,1763154063432,-462.0,0.00031644,2]
[393978066,1763154063470,-497.21368798,0.00031721,5]
[393978067,1763154063502,-43775.84960005,0.000319,2]
[393978068,1763154063534,-236.61254651,0.00031904,110]
[393978069,1763154063572,-2510.9390221,0.00032064,2]
[393978070,1763154063604,-760.0,0.00032071,2]
[393978071,1763154063636,-10000.0,0.00032109,10]
[393978072,1763154063669,-10000.0,0.00032118,10]
[393978073,1763154063703,-220.335232,0.00032118,31]
[393978074,1763154063738,-151.0,0.00032118,31]
[393978075,1763154063770,-151.0,0.00032118,31]
[393978076,1763154063804,-151.0,0.00032118,31]
[393978077,1763154063836,-151.0,0.00032118,31]
[393978078,1763154063869,-151.0,0.00032118,31]
[393978079,1763154063901,-151.0,0.00032118,31]
[393978080,1763154063933,-151.0,0.00032118,31]
[393978081,1763154063965,-210.552424,0.00032118,31]
[393978082,1763154063997,-151.0,0.00032118,31]
[393978083,1763154064029,-151.0,0.00032118,31]
[393978084,1763154064061,-151.0,0.00032118,31]
[393978085,1763154064096,-151.0,0.00032118,31]
[393978086,1763154064125,-10000.0,0.00032126,10]
[393978087,1763154064156,-10000.0,0.00032135,10]
[393978088,1763154064185,-10000.0,0.00032144,10]
[393978089,1763154064398,-10000.0,0.00032153,10]
[393978090,1763154064423,-10000.0,0.00032162,10]
[393978091,1763154064447,-151.0,0.00032162,31]
[393978092,1763154064473,-151.0,0.00032162,31]
[393978093,1763154064497,-151.0,0.00032162,31]
[393978094,1763154064522,-151.0,0.00032162,31]
[393978095,1763154064547,-151.0,0.00032162,31]
[393978096,1763154064574,-151.0,0.00032162,31]
[393978097,1763154064601,-151.0,0.00032162,31]
[393978098,1763154064628,-178.677,0.00032164,31]
[393978099,1763154064653,-10000.0,0.0003217,10]
[393978100,1763154064677,-10000.0,0.00032179,10]
[393978101,1763154064705,-10000.0,0.00032188,10]
[393978102,1763154064731,-10000.0,0.00032197,10]
[393978103,1763154064757,-347.86984536,0.00032197,2]
[393978104,1763154064783,-222.48198,0.00032204,31]
[393978105,1763154064809,-222.48198,0.00032204,31]
[393978106,1763154064835,-222.48198,0.00032204,31]
[393978107,1763154064861,-222.48198,0.00032204,31]
[393978108,1763154064886,-151.0,0.00032204,31]
[393978109,1763154064913,-1003.426045,0.00032204,31]
[393978110,1763154064940,-1003.426045,0.00032204,31]
[393978111,1763154064967,-1003.426045,0.00032204,31]
[393978112,1763154064993,-1003.426045,0.00032204,31]
[393978113,1763154065018,-398.531836,0.00032204,31]
[393978114,1763154065042,-151.0,0.00032204,31]
[393978115,1763154065065,-398.531836,0.00032204,31]
[393978116,1763154065090,-320.001299,0.00032204,31]
[393978117,1763154065116,-398.531836,0.00032204,31]
[393978118,1763154065140,-320.001299,0.00032204,31]
[393978119,1763154065165,-398.531836,0.00032204,31]
[393978120,1763154065191,-320.001299,0.00032204,31]
[393978121,1763154065216,-320.001299,0.00032204,31]
[393978122,1763154065241,-10000.0,0.00032206,10]
[393978123,1763154065265,-10000.0,0.00032214,10]
[393978124,1763154065289,-10000.0,0.00032223,10]
[393978125,1763154065313,-1809.62852432,0.00032232,10]
[393978126,1763154065339,-521.92570486,0.00032232,10]
[393978127,1763154065366,-10000.0,0.00032232,10]
[393978128,1763154065390,-347.205196,0.00032468,2]
[393978129,1763154065417,-819.47734982,0.00032619,2]
[393978130,1763154065441,-779.3852498,0.00032771,2]
[393978131,1763154065467,-151.0,0.0003279,31]
[393978132,1763154065493,-151.0,0.0003279,31]
[393978133,1763154065518,-151.0,0.0003279,31]
[393978134,1763154065543,-151.0,0.0003279,31]
[393978135,1763154065569,-151.0,0.0003279,31]
[393978136,1763154065595,-151.0,0.0003279,31]
[393978137,1763154065622,-151.0,0.0003279,31]
[393978138,1763154065647,-1986.21711399,0.00032796,2]
[393978139,1763154065672,-41905.70836676,0.000328,4]
[393978140,1763154065699,-276.45577741,0.000328,31]
[393978141,1763154065727,-151.0,0.000328,31]
[393978142,1763154065754,-151.0,0.000328,31]
[393978143,1763154065781,-151.0,0.000328,31]
[393978144,1763154065809,-159.172869,0.000328,31]
[393978145,1763154065835,-151.0,0.000328,31]
[393978146,1763154065861,-151.0,0.000328,31]
[393978147,1763154065886,-151.0,0.000328,31]
[393978148,1763154065912,-151.0,0.000328,31]
[393978149,1763154065937,-151.0,0.000328,31]
[393978150,1763154065964,-151.0,0.000328,31]
[393978151,1763154065989,-151.0,0.00032877,31]
[393978152,1763154066013,-151.0,0.00032877,31]
[393978153,1763154066045,-151.0,0.00032877,31]
[393978154,1763154066070,-151.0,0.00032877,31]
[393978155,1763154066095,-151.0,0.00032877,31]
[393978156,1763154066120,-151.0,0.00032877,31]
[393978157,1763154066144,-230.818372,0.00032877,31]
[393978158,1763154066169,-151.0,0.00032877,30]
[393978159,1763154066387,500.0,0.00022523,2]
[393978160,1763154066423,500.0,0.00022523,2]
[393978161,1763154066467,500.0,0.00022523,2]
[393978162,1763154066506,500.0,0.00022523,2]
[393978163,1763154066543,500.0,0.00022523,2]
[393978164,1763154066582,600.0,0.00022523,2]
[393978165,1763154066617,500.0,0.00022523,2]
[393978166,1763154066651,500.0,0.00022523,2]
[393978167,1763154066838,500.0,0.00022523,2]
[393978176,1763154297342,150.0,0.00019166,2]
[393978177,1763154306198,151.0,0.00039137,30]
[393978178,1763154306295,151.0,0.00039137,30]
[393978179,1763154306326,151.0,0.00039137,30]
[393978180,1763154306363,414.0,0.00039137,30]
[393978181,1763154306453,250.0,0.00039137,30]
[393978182,1763154306812,151.0,0.00039137,120]
[393978183,1763154307094,156.587,0.00039137,120]
[393978184,1763154307128,151.0,0.00039137,120]
[393978185,1763154307167,429.318,0.00039137,120]
[393978186,1763154307207,250.0,0.00039137,120]
[393978187,1763154307569,151.0,0.00039137,120]
[393978188,1763154307599,445.202766,0.00039137,120]
[393978189,1763154307628,162.380719,0.00039137,120]
[393978190,1763154307660,151.0,0.00039137,120]
[393978191,1763154307692,250.0,0.00039137,120]
[393978192,1763154307874,250.0,0.00039137,30]
[393978193,1763154308183,151.0,0.00039137,60]
[393978194,1763154308224,461.67526834,0.00039137,60]
[393978195,1763154308256,168.3888056,0.00039137,60]
[393978196,1763154308289,250.0,0.00039137,60]
[393978197,1763154308353,250.0,0.00039137,30]
[393978198,1763154308491,250.0,0.00039137,120]
[393978199,1763154308566,151.0,0.00039137,30]
[393978200,1763154308752,151.0,0.00039137,60]
[393978201,1763154308814,151.0,0.00039137,30]
[393978202,1763154308846,478.75725327,0.00039137,30]
[393978203,1763154308878,174.61919141,0.00039137,30]
[393978204,1763154308915,151.0,0.00039137,30]
[393978205,1763154308955,250.0,0.00039137,30]
[393978206,1763154308995,250.0,0.00039137,120]
[393978207,1763154309099,250.0,0.00039137,120]
[393978208,1763154309216,151.0,0.00039137,120]
[393978209,1763154309382,151.0,0.00039137,30]
[393978210,1763154309453,496.47127164,0.00039137,120]
[393978211,1763154309483,151.0,0.00039137,120]
[393978212,1763154309513,181.08010149,0.00039137,120]
[393978213,1763154309556,250.0,0.00039137,120]
[393978214,1763154309620,250.0,0.00039137,120]
[393978215,1763154309654,156.587,0.00039137,120]
[393978216,1763154309745,250.0,0.00039137,60]
[393978217,1763154309822,151.0,0.00039137,120]
[393978218,1763154309984,151.0,0.00039137,30]
[393978219,1763154310155,514.84070869,0.00039137,60]
[393978220,1763154310195,250.0,0.00039137,60]
[393978221,1763154310257,187.78006525,0.00039137,60]
[393978222,1763154310289,151.0,0.00039137,120]
[393978223,1763154310326,162.380719,0.00039137,120]
[393978224,1763154310355,250.0,0.00039137,60]
[393978225,1763154310385,250.0,0.00039137,30]
[393978226,1763154310475,151.0,0.00039137,60]
[393978227,1763154310612,151.0,0.00039137,30]
[393978228,1763154310786,514.84070869,0.00039137,60]
[393978229,1763154310819,250.0,0.00039137,35]
[393978230,1763154310865,194.72792766,0.00039137,35]
[393978231,1763154310959,168.3888056,0.00039137,60]
[393978232,1763154310999,250.0,0.00039137,30]
[393978233,1763154311054,250.0,0.00039137,120]
[393978234,1763154311170,151.0,0.00039137,30]
[393978235,1763154311237,151.0,0.00039137,120]
[393978236,1763154311418,250.0,0.00039137,120]
[393978237,1763154311503,201.93286099,0.00039137,120]
[393978238,1763154311592,250.0,0.00039137,120]
[393978239,1763154311628,174.61919141,0.00039137,30]
[393978240,1763154311661,250.0,0.00039137,120]
[393978241,1763154311732,151.0,0.00039137,120]
[393978242,1763154311821,151.0,0.00039137,120]
[393978243,1763154312026,250.0,0.00039137,10]
[393978244,1763154312197,209.40437684,0.00039137,10]
[393978245,1763154312232,250.0,0.00039137,60]
[393978246,1763154312273,181.08010149,0.00039137,120]
[393978247,1763154312406,151.0,0.00039137,60]
[393978248,1763154312518,151.0,0.00039137,60]
[393978249,1763154312702,250.0,0.00039137,10]
[393978250,1763154312916,217.15233878,0.00039137,10]
[393978251,1763154313099,187.78006525,0.00039137,60]
[393978252,1763154313343,151.0,0.00039137,35]
[393978253,1763154313374,250.0,0.00039137,35]
[393978254,1763154313407,151.0,0.00039137,30]
[393978255,1763154313464,151.0,0.00039137,30]
[393978256,1763154313535,217.15233878,0.00039137,10]
[393978257,1763154313717,194.72792766,0.00039137,35]
[393978258,1763154313753,151.0,0.00039137,120]
[393978259,1763154313789,250.0,0.00039137,120]
[393978260,1763154313822,151.0,0.00039137,120]
[393978261,1763154314045,151.0,0.00039137,30]
[393978262,1763154314359,201.93286099,0.00039137,120]
[393978263,1763154314401,151.0,0.00039137,120]
[393978264,1763154314571,151.0,0.00039137,120]
[393978265,1763154314650,250.0,0.00039137,10]
[393978266,1763154315020,209.40437684,0.00039137,10]
[393978267,1763154315267,250.0,0.00039137,30]
[393978268,1763154315299,250.0,0.00039137,10]
[393978269,1763154315328,250.0,0.00039137,30]
[393978270,1763154315696,217.15233878,0.00039137,10]
[393978271,1763154315864,250.0,0.00039137,120]
[393978272,1763154315933,250.0,0.00039137,10]
[393978273,1763154316316,225.18697532,0.00039137,10]
[393978274,1763154316403,250.0,0.00039137,120]
[393978275,1763154316494,250.0,0.00039137,120]
[393978276,1763154316538,250.0,0.00039137,10]
[393978277,1763154316950,233.51889341,0.00039137,10]
[393978278,1763154317022,250.0,0.00039137,120]
[393978279,1763154317153,250.0,0.00039137,60]
[393978280,1763154317186,250.0,0.00039137,10]
[393978281,1763154317354,151.0,0.00039137,30]
[393978282,1763154317565,242.15909246,0.00039137,10]
[393978283,1763154317620,250.0,0.00039137,60]
[393978284,1763154317757,250.0,0.00039137,30]
[393978285,1763154317800,250.0,0.00039137,10]
[393978286,1763154317983,151.0,0.00039137,120]
[393978287,1763154318226,251.11897888,0.00039137,10]
[393978288,1763154318262,250.0,0.00039137,30]
[393978289,1763154318532,250.0,0.00039137,120]
[393978290,1763154318604,151.0,0.00039137,120]
[393978291,1763154318872,260.4103811,0.00039137,10]
[393978292,1763154318912,250.0,0.00039137,120]
[393978293,1763154318950,250.0,0.00039137,10]
[393978294,1763154318985,250.0,0.00039137,120]
[393978295,1763154319219,151.0,0.00039137,10]
[393978296,1763154319545,270.0455652,0.00039137,10]
[393978297,1763154319576,250.0,0.00039137,60]
[393978298,1763154319607,250.0,0.00039137,10]
[393978299,1763154319814,151.0,0.00039137,10]
[393978300,1763154320166,280.03725112,0.00039137,10]
[393978301,1763154320194,250.0,0.00039137,35]
[393978302,1763154320232,250.0,0.00039137,10]
[393978303,1763154320443,151.0,0.00039137,10]
[393978304,1763154320821,250.0,0.00039137,120]
[393978305,1763154320856,290.39862941,0.00039137,10]
[393978306,1763154321046,151.0,0.00039137,10]
[393978307,1763154321433,250.0,0.00039137,10]
[393978308,1763154321468,290.39862941,0.00039137,10]
[393978309,1763154321686,151.0,0.00039137,10]
[393978310,1763154322056,250.0,0.00039137,10]
[393978311,1763154322290,151.0,0.00039137,10]
[393978312,1763154322663,250.0,0.00039137,10]
[393978313,1763154322765,151.0,0.00039137,30]
[393978314,1763154323514,156.587,0.00039137,120]
[393978315,1763154323757,250.0,0.00039137,10]
[393978316,1763154323995,162.380719,0.00039137,120]
[393978317,1763154324632,168.3888056,0.00039137,60]
[393978318,1763154325288,174.61919141,0.00039137,30]
[393978319,1763154325918,181.08010149,0.00039137,120]
[393978320,1763154326579,181.08010149,0.00039137,120]
[393978321,1763154369551,250.0,0.00039137,10]
[393978322,1763154370066,250.0,0.00039137,10]
[393978323,1763154370543,250.0,0.00039137,10]
[393978326,1763154377759,150.0,0.00019295,2]
[393978327,1763154457713,152.73,0.0001923,2]
[393978328,1763154473274,5000.0,0.00019999,2]
[393978330,1763154488641,4697.28,0.00019999,2]
[393978331,1763154488663,302.72,0.00019999,2]
[393978332,1763154496398,5000.0,0.00019999,2]
[393978334,1763154511439,4697.29,0.00019999,2]
[393978335,1763154511461,302.71,0.00019999,2]
[393978336,1763154519236,5000.0,0.00019999,2]
[393978337,1763154537705,154.6,0.00019112,2]
[393978338,1763154543052,4542.7,0.00019999,2]
[393978339,1763154543076,457.3,0.00019999,2]
[393978340,1763154543925,-309.2,0.00020022,2]
[393978341,1763154543948,-901.76406523,0.00020146,2]
[393978342,1763154564936,5000.0,0.00019999,2]
[393978344,1763154586658,1403.77827423,0.00019999,2]
[393978345,1763154598593,-369.41204764,0.00020146,2]
[393978346,1763154610103,151.0,0.00039084,120]
[393978347,1763154610718,156.587,0.00039084,120]
[393978348,1763154611671,162.380719,0.00039084,120]
[393978349,1763154611999,168.3888056,0.00039084,120]
[393978350,1763154612657,174.61919141,0.00039084,120]
[393978351,1763154613316,181.08010149,0.00039084,120]
[393978352,1763154613945,187.78006525,0.00039084,120]
[393978353,1763154614587,194.72792766,0.00039084,120]
[393978354,1763154615198,201.93286099,0.00039084,120]
[393978355,1763154615966,209.40437684,0.00039084,120]
[393978356,1763154616599,209.40437684,0.00039084,120]
[393978357,1763154617387,154.43,0.00019333,2]
[393978436,1763154632204,-14.84908372,0.00020146,2]
[393978438,1763154632215,-543.59917033,0.00020146,2]
[393978452,1763154632331,-439.40082967,0.00020146,2]
[393978454,1763154632345,-202.27461607,0.000202,2]
[393978457,1763154632360,-308.85,0.00020253,2]
[393978459,1763154632370,-5000.0,0.0002033,2]
[393978461,1763154632382,-1200.0,0.00021142,2]
[393978464,1763154632396,-643.125417,0.00021143,2]
[393978466,1763154632408,-463.28,0.00021174,2]
[393978468,1763154632421,-617.71,0.00022094,2]
[393978471,1763154632433,-238.68404696,0.000222,2]
[393978473,1763154632445,-3665.78548428,0.00022428,2]
[393978475,1763154632457,-198.87451557,0.000225,2]
[393978477,1763154632468,-300.0,0.00022527,2]
[393978480,1763154632479,-500.0,0.00022528,2]
[393978482,1763154632491,-50000.0,0.00022528,2]
[393978484,1763154632502,-359.19703741,0.00022528,2]
[393978485,1763154632514,-500.0,0.00022528,2]
[393978487,1763154632526,-168.17820247,0.00022528,2]
[393978489,1763154632542,-500.0,0.00022528,2]
[393978490,1763154632554,-500.0,0.00022528,2]
[393978491,1763154632565,-500.0,0.00022528,2]
[393978492,1763154632577,-500.0,0.00022528,2]
[393978493,1763154632590,-500.0,0.00022528,2]
[393978494,1763154632601,-500.0,0.00022528,2]
[393978495,1763154632614,-500.0,0.00022528,2]
[393978498,1763154632625,-500.0,0.00022528,2]
[393978500,1763154632637,-500.0,0.00022528,2]
[393978502,1763154632649,-500.0,0.00022528,2]
[393978504,1763154632660,-500.0,0.00022528,2]
[393978506,1763154632674,-500.0,0.00022528,2]
[393978509,1763154632685,-500.0,0.00022528,2]
[393978511,1763154632697,-500.0,0.00022528,2]
[393978513,1763154632708,-500.0,0.00022528,2]
[393978514,1763154632720,-500.0,0.00022528,2]
[393978515,1763154632731,-646.71998897,0.00022528,2]
[393978516,1763154632743,-500.0,0.00022528,2]
[393978518,1763154632755,-500.0,0.00022528,2]
[393978520,1763154632767,-500.0,0.00022528,2]
[393978522,1763154632778,-500.0,0.00022528,2]
[393978524,1763154632790,-500.0,0.00022528,2]
[393978527,1763154632802,-500.0,0.00022528,2]
[393978529,1763154632813,-500.0,0.00022528,2]
[393978531,1763154632825,-500.0,0.00022528,2]
[393978533,1763154632836,-500.0,0.00022528,2]
[393978535,1763154632848,-500.0,0.00022528,2]
[393978537,1763154632860,-500.0,0.00022528,2]
[393978539,1763154632871,-500.0,0.00022528,2]
[393978541,1763154632883,-500.0,0.00022528,2]
[393978544,1763154632896,-500.0,0.00022528,2]
[393978546,1763154632907,-500.0,0.00022528,2]
[393978548,1763154632920,-500.0,0.00022528,2]
[393978550,1763154632932,-500.0,0.00022528,2]
[393978553,1763154632944,-500.0,0.00022528,2]
[393978555,1763154632956,-500.0,0.00022528,2]
[393978557,1763154632970,-500.0,0.00022528,2]
[393978560,1763154632986,-500.0,0.00022528,2]
[393978562,1763154632997,-522.60091111,0.00022528,2]
[393978564,1763154633009,-500.0,0.00022528,2]
[393978566,1763154633021,-500.0,0.00022528,2]
[393978569,1763154633033,-500.0,0.00022528,2]
[393978571,1763154633045,-500.0,0.00022528,2]
[393978573,1763154633056,-500.0,0.00022528,2]
[393978575,1763154633068,-500.0,0.00022528,2]
[393978578,1763154633080,-500.0,0.00022528,2]
[393978579,1763154633092,-500.0,0.00022528,2]
[393978580,1763154633104,-500.0,0.00022528,2]
[393978581,1763154633115,-500.0,0.00022528,2]
[393978582,1763154633126,-500.0,0.00022528,2]
[393978583,1763154633137,-500.0,0.00022528,2]
[393978584,1763154633146,-264.82667653,0.00022528,2]
[393978585,1763154633155,-500.0,0.00022528,2]
[393978586,1763154633166,-500.0,0.00022528,2]
[393978587,1763154633175,-500.0,0.00022528,2]
[393978588,1763154633184,-500.0,0.00022528,2]
[393978602,1763154633377,-294.2672586,0.00022528,2]
[393978604,1763154633391,-606.08290019,0.00022528,2]
[393978606,1763154633400,-500.0,0.00022528,2]
[393978608,1763154633409,-500.0,0.00022528,2]
[393978610,1763154633420,-500.0,0.00022528,2]
[393978612,1763154633430,-500.0,0.00022528,2]
[393978614,1763154633439,-500.0,0.00022528,2]
[393978616,1763154633448,-500.0,0.00022528,2]
[393978618,1763154633457,-500.0,0.00022528,2]
[393978620,1763154633466,-500.0,0.00022528,2]
[393978622,1763154633475,-500.0,0.00022528,2]
[393978624,1763154633484,-500.0,0.00022528,2]
[393978626,1763154633493,-500.0,0.00022528,2]
[393978628,1763154633501,-500.0,0.00022528,2]
[393978630,1763154633510,-500.0,0.00022528,2]
[393978632,1763154633520,-500.0,0.00022528,2]
[393978634,1763154633529,-500.0,0.00022528,2]
[393978636,1763154633541,-500.0,0.00022528,2]
[393978638,1763154633550,-500.0,0.00022528,2]
[393978640,1763154633559,-500.0,0.00022528,2]
[393978642,1763154633568,-500.0,0.00022528,2]
[393978644,1763154633578,-500.0,0.00022528,2]
[393978646,1763154633587,-500.0,0.00022528,2]
[393978648,1763154633596,-500.0,0.00022528,2]
[393978649,1763154633604,-500.0,0.00022528,2]
[393978651,1763154633615,-500.0,0.00022528,2]
[393978653,1763154633624,-500.0,0.00022528,2]
[393978655,1763154633633,-500.0,0.00022528,2]
[393978657,1763154633644,-500.0,0.00022528,2]
[393978659,1763154633653,-500.0,0.00022528,2]
[393978661,1763154633661,-500.0,0.00022528,2]
[393978663,1763154633673,-500.0,0.00022528,2]
[393978665,1763154633682,-500.0,0.00022528,2]
[393978667,1763154633691,-500.0,0.00022528,2]
[393978669,1763154633700,-175.71803503,0.00022528,2]
[393978671,1763154633709,-500.0,0.00022528,2]
[393978673,1763154633718,-500.0,0.00022528,2]
[393978675,1763154633727,-500.0,0.00022528,2]
[393978677,1763154633736,-500.0,0.00022528,2]
[393978679,1763154633745,-500.0,0.00022528,2]
[393978681,1763154633754,-500.0,0.00022528,2]
[393978683,1763154633763,-500.0,0.00022528,2]
[393978685,1763154633772,-500.0,0.00022528,2]
[393978687,1763154633781,-500.0,0.00022528,2]
[393978689,1763154633790,-168.1840231,0.00022528,2]
[393978691,1763154633799,-500.0,0.00022528,2]
[393978693,1763154633807,-500.0,0.00022528,2]
[393978695,1763154633816,-500.0,0.00022528,2]
[393978697,1763154633825,-500.0,0.00022528,2]
[393978699,1763154633834,-500.0,0.00022528,2]
[393978700,1763154633843,-500.0,0.00022528,2]
[393978702,1763154633852,-500.0,0.00022528,2]
[393978704,1763154633861,-500.0,0.00022528,2]
[393978706,1763154633871,-500.0,0.00022528,2]
[393978708,1763154633881,-500.0,0.00022528,2]
[393978710,1763154633889,-500.0,0.00022528,2]
[393978712,1763154633898,-500.0,0.00022528,2]
[393978714,1763154633907,-500.0,0.00022528,2]
[393978716,1763154633916,-500.0,0.00022528,2]
[393978718,1763154633925,-500.0,0.00022528,2]
[393978720,1763154633934,-500.0,0.00022528,2]
[393978722,1763154633943,-500.0,0.00022528,2]
[393978724,1763154633952,-500.0,0.00022528,2]
[393978726,1763154633961,-324.10013936,0.00022528,2]
[393978728,1763154633970,-500.0,0.00022528,2]
[393978730,1763154633980,-500.0,0.00022528,2]
[393978732,1763154633988,-500.0,0.00022528,2]
[393978734,1763154633997,-500.0,0.00022528,2]
[393978735,1763154634005,-500.0,0.00022528,2]
[393978737,1763154634014,-500.0,0.00022528,2]
[393978739,1763154634023,-500.0,0.00022528,2]
[393978741,1763154634031,-582.178231,0.00022528,2]
[393978743,1763154634040,-500.0,0.00022528,2]
[393978745,1763154634049,-500.0,0.00022528,2]
[393978747,1763154634058,-198.21742969,0.00022528,2]
[393978749,1763154634067,-500.0,0.00022528,2]
[393978751,1763154634076,-500.0,0.00022528,2]
[393978753,1763154634084,-500.0,0.00022528,2]
[393978755,1763154634093,-500.0,0.00022528,2]
[393978757,1763154634102,-500.0,0.00022528,2]
[393978759,1763154634111,-500.0,0.00022528,2]
[393978761,1763154634120,-500.0,0.00022528,2]
[393978763,1763154634130,-500.0,0.00022528,2]
[393978764,1763154634139,-500.0,0.00022528,2]
[393978765,1763154634148,-500.0,0.00022528,2]
[393978766,1763154634157,-500.0,0.00022528,2]
[393978767,1763154634166,-500.0,0.00022528,2]
[393978768,1763154634175,-500.0,0.00022528,2]
[393978769,1763154634184,-281.05131185,0.00022528,2]
[393978770,1763154634193,-500.0,0.00022528,2]
[393978771,1763154634201,-500.0,0.00022528,2]
[393978772,1763154634211,-500.0,0.00022528,2]
[393978773,1763154634219,-500.0,0.00022528,2]
[393978774,1763154634228,-274.10013936,0.00022528,2]
[393978775,1763154634237,-500.0,0.00022528,2]
[393978776,1763154634246,-500.0,0.00022528,2]
[393978777,1763154634255,-500.0,0.00022528,2]
[393978778,1763154634264,-500.0,0.00022528,2]
[393978779,1763154634273,-770.91412444,0.00022528,2]
[393978780,1763154634282,-770.91412444,0.00022528,2]
[393978782,1763154634291,-770.91412444,0.00022528,2]
[393978784,1763154634300,-770.91412444,0.00022528,2]
[393978785,1763154634308,-770.91412444,0.00022528,2]
[393978787,1763154634317,-770.91412444,0.00022528,2]
[393978789,1763154634326,-770.91412444,0.00022528,2]
[393978790,1763154634335,-770.91412444,0.00022528,2]
[393978792,1763154634343,-770.91412444,0.00022528,2]
[393978793,1763154634352,-770.91412444,0.00022528,2]
[393978794,1763154634361,-770.91412444,0.00022528,2]
[393978795,1763154634370,-770.91412444,0.00022528,2]
[393978796,1763154634378,-770.91412444,0.00022528,2]
[393978797,1763154634387,-770.91412444,0.00022528,2]
[393978798,1763154634396,-770.91412444,0.00022528,2]
[393978799,1763154634405,-770.91412444,0.00022528,2]
[393978800,1763154634414,-500.0,0.00022528,2]
[393978801,1763154634423,-500.0,0.00022528,2]
[393978802,1763154634432,-500.0,0.00022528,2]
[393978803,1763154634441,-500.0,0.00022528,2]
[393978804,1763154634450,-500.0,0.00022528,2]
[393978805,1763154634459,-500.0,0.00022528,2]
[393978806,1763154634468,-500.0,0.00022528,2]
[393978807,1763154634476,-770.91412444,0.00022528,2]
[393978808,1763154634485,-500.0,0.00022528,2]
[393978809,1763154634494,-500.0,0.00022528,2]
[393978810,1763154634503,-500.0,0.00022528,2]
[393978811,1763154634511,-770.91412444,0.00022528,2]
[393978812,1763154634520,-500.0,0.00022528,2]
[393978813,1763154634529,-500.0,0.00022528,2]
[393978814,1763154634540,-280.6478515,0.00022528,2]
[393978815,1763154634549,-770.91412444,0.00022528,2]